bitfinex/quotes_SOLUSD_20240626
["timestamp","ask_amount","ask_price","bid_price","bid_amount"]
[1719426684190,27.38,136.0,135.96,0.34]
[1719426684409,27.38,135.99,135.96,0.34]
[1719426684707,27.38,135.99,135.95,0.34]
[1719426685116,27.38,135.99,135.95,7.712]
[1719426685423,27.38,136.0,135.95,7.712]
[1719426686211,27.38,135.99,135.95,7.712]
[1719426686418,27.38,135.98,135.95,7.542]
[1719426687105,27.38,135.98,135.94,15.418]
[1719426687311,27.38,135.98,135.95,7.372]
[1719426687791,0.8506923,136.01,135.95,27.38]
[1719426687999,28.2306923,136.01,135.95,27.38]
[1719426688423,28.2306923,136.01,135.96,7.542]
[1719426689006,27.38,136.0,135.96,7.542]
[1719426690511,27.38,136.0,135.96,0.17]
[1719426690711,27.38,136.0,135.95,7.372]
[1719426691022,27.38,135.99,135.94,15.418]
[1719426691723,27.38,135.99,135.95,7.372]
[1719426692524,27.38,136.0,135.94,42.798]
[1719426692727,0.8506923,136.01,135.95,34.752]
[1719426693040,27.38,136.0,135.96,0.34]
[1719426695045,28.2306923,136.01,135.96,7.712]
[1719426697218,28.2306923,136.01,135.96,35.092]
[1719426697728,28.2306923,136.01,135.96,7.712]
[1719426698111,0.8506923,136.01,135.96,7.712]
[1719426698311,0.8506923,136.01,135.97,34.752]
[1719426698511,0.8506923,136.01,135.97,27.38]
[1719426698712,0.8506923,136.01,135.98,1.47057476]
[1719426699538,0.8506923,136.01,135.98,8.84257476]
[1719426699729,0.8506923,136.01,135.99,0.34]
[1719426701342,0.8506923,136.01,135.99,7.712]
[1719426701929,0.8506923,136.01,135.99,0.34]
[1719426702129,0.8506923,136.01,135.98,0.34]
[1719426702335,0.8506923,136.01,135.98,7.712]
[1719426702517,0.8506923,136.01,135.98,0.34]
[1719426702717,0.8506923,136.01,135.97,0.34]
[1719426702923,28.2306923,136.01,135.97,0.34]
[1719426703522,28.2306923,136.01,135.97,7.712]
[1719426706423,28.2306923,136.01,135.97,0.34]
[1719426706624,28.2306923,136.01,135.97,7.712]
[1719426707728,0.8506923,136.01,135.97,7.712]
[1719426709327,0.8506923,136.01,135.94,15.418]
[1719426709328,28.2306923,136.01,135.94,15.418]
[1719426709533,27.38,136.0,135.95,27.72]
[1719426709738,27.38,136.0,135.95,0.17]
[1719426709934,0.8506923,136.01,135.95,0.17]
[1719426710245,0.8506923,136.01,135.96,27.38]
[1719426710442,0.8506923,136.01,135.97,7.542]
[1719426711125,0.8506923,136.01,135.98,0.17]
[1719426711644,0.8506923,136.01,135.98,7.542]
[1719426715150,0.8506923,136.01,135.97,0.17]
[1719426715344,0.8506923,136.01,135.97,7.712]
[1719426715528,0.8506923,136.01,135.97,27.72]
[1719426716351,0.8506923,136.01,135.99,7.372]
[1719426720742,0.8506923,136.01,135.99,34.752]
[1719426721847,0.8506923,136.01,136.0,27.72]
[1719426722047,0.8506923,136.01,136.0,27.55]
[1719426722249,0.8506923,136.01,136.0,35.092]
[1719426723043,0.8506923,136.01,135.99,15.9917]
[1719426723247,0.8506923,136.01,135.96,7.372]
[1719426723436,0.8506923,136.01,135.98,7.372]
[1719426723641,0.8506923,136.01,135.99,0.34]
[1719426724544,0.8506923,136.01,135.99,7.712]
[1719426724743,0.8506923,136.01,135.99,0.34]
[1719426724945,0.8506923,136.01,135.97,100.0]
[1719426724946,0.8506923,136.01,136.0,27.38]
[1719426725253,0.8506923,136.01,136.0,27.72]
[1719426725755,0.8506923,136.01,136.0,50.1809]
[1719426725936,0.8506923,136.01,136.0,22.8009]
[1719426726140,7.68370236,136.06,136.0,42.8089]
[1719426726341,7.68370236,136.06,136.02,27.38]
[1719426726561,7.68370236,136.06,136.03,0.34]
[1719426726747,7.68370236,136.06,136.03,7.712]
[1719426727742,7.68370236,136.06,136.03,7.372]
[1719426728062,35.06370236,136.06,136.02,7.372]
[1719426728260,27.38,136.04,135.98,27.38]
[1719426728763,7.68370236,136.06,135.99,27.38]
[1719426728939,7.68370236,136.06,135.97,5.96894095]
[1719426729138,7.68370236,136.06,135.99,27.38]
[1719426729562,7.68370236,136.06,136.0,0.34]
[1719426730060,7.68370236,136.06,136.0,0.17]
[1719426730242,27.38,136.03,135.98,27.38]
[1719426730446,27.38,136.03,135.99,0.34]
[1719426731143,27.38,136.03,135.99,7.712]
[1719426731467,27.38,136.01,135.99,7.372]
[1719426732046,27.38,136.02,135.99,7.372]
[1719426732347,27.38,136.02,135.97,7.372]
[1719426733653,27.38,136.02,135.96,0.17]
[1719426733856,27.38,136.02,135.97,7.372]
[1719426734454,27.38,136.02,135.95,0.34]
[1719426734650,27.38,136.01,135.96,7.542]
[1719426735678,13.8121,136.04,135.96,7.542]
[1719426735859,27.38,136.01,135.96,7.542]
[1719426736263,27.38,136.0,135.96,0.17]
[1719426736573,27.38,136.0,135.95,7.372]
[1719426736744,27.38,136.01,135.95,27.38]
[1719426737161,27.38,136.01,135.96,0.17]
[1719426737351,27.38,136.01,135.96,7.542]
[1719426737566,16.3747,136.03,135.98,27.38]
[1719426737747,6.4612,136.04,135.98,27.38]
[1719426737748,33.8412,136.04,135.98,27.38]
[1719426738146,33.8412,136.04,135.99,0.17]
[1719426738353,33.8412,136.04,135.99,7.712]
[1719426738551,33.8412,136.04,135.99,7.542]
[1719426738752,27.38,136.03,135.99,7.372]
[1719426739568,27.38,136.03,135.98,27.38]
[1719426739770,23.25010236,136.06,135.97,15.4402]
[1719426740068,27.38,136.04,135.99,27.55]
[1719426740267,27.38,136.04,135.99,27.38]
[1719426740770,27.38,136.04,135.97,15.4402]
[1719426740968,27.38,136.04,135.98,27.38]
[1719426741272,27.38,136.04,135.99,0.17]
[1719426741466,27.38,136.04,135.99,0.34]
[1719426741774,27.38,136.04,135.99,7.712]
[1719426742260,23.25010236,136.06,135.99,7.712]
[1719426742464,27.38,136.05,135.99,27.72]
[1719426742852,27.38,136.05,136.0,7.372]
[1719426743370,23.25010236,136.06,135.99,27.72]
[1719426743371,7.68370236,136.06,135.99,27.72]
[1719426743556,35.06370236,136.06,136.0,27.38]
[1719426744063,35.06370236,136.06,136.01,7.372]
[1719426744451,7.68370236,136.06,136.02,34.922]
[1719426744653,7.68370236,136.06,136.02,27.38]
[1719426744854,7.68370236,136.06,136.04,7.372]
[1719426746072,7.68370236,136.06,136.03,7.372]
[1719426747554,7.68370236,136.06,136.01,0.34]
[1719426747872,7.68370236,136.06,136.02,27.38]
[1719426748068,7.68370236,136.06,136.03,0.17]
[1719426748475,7.68370236,136.06,136.01,0.17]
[1719426748648,7.68370236,136.06,136.02,27.38]
[1719426749469,7.68370236,136.06,136.03,7.372]
[1719426750474,7.68370236,136.06,136.0,0.34]
[1719426750475,7.68370236,136.06,136.04,7.372]
[1719426750675,7.68370236,136.06,135.99,20.0]
[1719426750868,27.38,136.05,135.98,20.0]
[1719426751068,27.38,136.05,135.99,27.38]
[1719426752175,7.68370236,136.06,136.0,7.372]
[1719426752365,35.06370236,136.06,136.0,34.752]
[1719426752565,35.06370236,136.06,136.0,27.38]
[1719426753276,35.06370236,136.06,135.99,0.34]
[1719426753277,35.06370236,136.06,136.01,34.752]
[1719426753775,7.68370236,136.06,136.01,34.752]
[1719426754076,35.06370236,136.06,136.01,7.372]
[1719426754882,27.38,136.05,136.01,7.372]
[1719426756082,35.06370236,136.06,136.01,7.372]
[1719426756383,7.68370236,136.06,135.99,0.34]
[1719426756578,27.38,136.05,135.99,27.38]
[1719426756780,27.38,136.05,136.0,35.092]
[1719426757015,27.38,136.05,136.0,34.922]
[1719426757660,27.38,136.05,136.0,0.17]
[1719426757890,27.38,136.04,135.97,21.132]
[1719426758193,7.68370236,136.06,135.97,42.4802]
[1719426758194,27.38,136.03,135.97,42.4802]
[1719426758995,27.38,136.03,135.97,15.1002]
[1719426759163,27.38,136.03,135.98,35.092]
[1719426759586,15.2515,136.04,135.98,35.092]
[1719426759587,15.2515,136.04,135.98,27.72]
[1719426759876,27.38,136.05,136.0,27.38]
[1719426760080,27.38,136.05,136.0,34.752]
[1719426760785,7.68370236,136.06,136.0,27.38]
[1719426760984,35.06370236,136.06,136.0,27.38]
[1719426761185,35.06370236,136.06,136.01,7.372]
[1719426761984,7.68370236,136.06,136.01,7.372]
[1719426762484,35.06370236,136.06,136.01,7.372]
[1719426762886,27.38,136.05,135.98,0.34]
[1719426763079,27.38,136.05,136.01,7.372]
[1719426764287,27.38,136.05,136.0,7.372]
[1719426767784,7.68370236,136.06,136.0,7.372]
[1719426767991,27.38,136.04,136.0,7.372]
[1719426768481,27.38,136.03,135.98,0.34]
[1719426768987,27.38,136.03,135.98,7.712]
[1719426769687,27.38,136.03,135.96,5.8800111]
[1719426769870,27.38,136.03,135.95,7.372]
[1719426770192,27.38,136.03,135.97,7.372]
[1719426771389,27.38,136.03,135.96,0.34]
[1719426771591,27.38,136.03,135.97,7.372]
[1719426771973,27.38,136.03,135.98,0.7004512]
[1719426772174,27.38,136.05,135.99,27.38]
[1719426773285,27.38,136.04,136.0,7.372]
[1719426773488,27.38,136.05,136.0,7.372]
[1719426775095,7.68370236,136.06,136.0,7.372]
[1719426775286,35.06370236,136.06,136.01,7.372]
[1719426775479,27.38,136.05,136.01,7.372]
[1719426775894,27.38,136.05,135.99,27.38]
[1719426776378,27.38,136.05,136.0,7.372]
[1719426777084,27.38,136.05,135.99,27.38]
[1719426777695,27.38,136.05,136.0,7.372]
[1719426781073,27.38,136.03,135.98,0.34]
[1719426781277,27.38,136.03,135.98,7.372]
[1719426781482,27.38,136.02,135.96,27.38]
[1719426781798,27.38,136.0,135.95,27.38]
[1719426781991,27.38,136.0,135.94,28.0387033]
[1719426781992,27.38,136.0,135.94,16.0861]
[1719426782202,27.38,136.0,135.95,34.752]
[1719426782704,27.38,136.0,135.95,7.372]
[1719426783200,27.38,136.0,135.95,34.752]
[1719426783583,27.38,136.0,135.94,16.0861]
[1719426783902,27.38,135.99,135.95,7.372]
[1719426784108,27.38,135.99,135.93,27.38]
[1719426784684,27.38,135.99,135.94,7.372]
[1719426785899,27.38,135.99,135.95,7.372]
[1719426786088,22.1572,136.02,135.95,27.38]
[1719426786294,27.38,136.0,135.95,27.38]
[1719426786502,27.38,136.0,135.94,27.55]
[1719426786893,27.38,136.0,135.95,7.372]
[1719426787092,27.38,136.0,135.94,27.55]
[1719426787296,27.38,135.99,135.93,27.38]
[1719426788105,27.38,135.99,135.94,7.372]
[1719426788713,27.38,136.01,135.92,0.17]
[1719426788915,27.38,135.97,135.93,7.372]
[1719426789306,27.38,135.97,135.92,27.38]
[1719426789900,27.38,135.97,135.91,0.34]
[1719426790103,27.38,135.97,135.92,7.372]
[1719426790523,27.38,135.96,135.91,0.34]
[1719426790691,27.38,135.96,135.9,27.72]
[1719426791095,27.38,135.96,135.91,7.372]
[1719426791316,15.84,135.97,135.91,34.752]
[1719426791618,27.38,135.96,135.91,34.752]
[1719426792315,6.4564,135.98,135.92,27.38]
[1719426792489,6.4564,135.98,135.93,27.38]
[1719426792812,43.4133,135.99,135.93,27.38]
[1719426793812,43.4133,135.99,135.93,34.752]
[1719426794193,43.4133,135.99,135.92,0.17]
[1719426794392,27.38,135.98,135.92,27.38]
[1719426794794,27.38,135.97,135.91,27.55]
[1719426794994,27.38,135.97,135.92,7.372]
[1719426795213,27.38,135.97,135.91,27.55]
[1719426795214,27.38,135.96,135.91,0.17]
[1719426795405,27.38,135.95,135.88,20.0]
[1719426795715,27.38,135.94,135.88,20.0]
[1719426796014,27.38,135.94,135.89,27.38]
[1719426796213,27.38,135.95,135.89,27.38]
[1719426796748,27.38,135.95,135.9,27.38]
[1719426796931,27.38,135.95,135.9,34.752]
[1719426798227,33.8728,135.97,135.91,27.38]
[1719426798514,33.8728,135.97,135.91,34.752]
[1719426799706,16.0333,135.99,135.92,7.372]
[1719426799903,16.0333,135.99,135.94,27.38]
[1719426799904,43.4133,135.99,135.94,27.38]
[1719426800105,43.4133,135.99,135.93,27.55]
[1719426800308,27.38,135.98,135.93,27.38]
[1719426800515,16.0333,135.99,135.93,27.38]
[1719426800713,16.0333,135.99,135.94,27.55]
[1719426800910,16.0333,135.99,135.95,7.542]
[1719426801113,16.0333,135.99,135.95,34.922]
[1719426801303,16.0333,135.99,135.95,34.752]
[1719426802327,27.38,136.0,135.95,34.752]
[1719426802520,34.0048,136.01,135.95,34.752]
[1719426803727,27.38,136.0,135.95,34.752]
[1719426803916,27.38,135.99,135.95,7.372]
[1719426805422,27.38,135.97,135.89,15.2937]
[1719426805726,27.38,135.97,135.91,27.38]
[1719426806226,27.38,135.97,135.92,27.38]
[1719426806410,27.38,135.97,135.9,0.17]
[1719426806819,27.38,135.97,135.91,27.38]
[1719426807326,27.38,135.97,135.92,7.372]
[1719426807931,27.38,135.97,135.9,0.34]
[1719426808118,27.38,135.97,135.91,27.38]
[1719426808622,27.38,135.97,135.92,7.372]
[1719426810715,43.4734,135.97,135.89,15.2937]
[1719426810925,43.4734,135.97,135.92,7.372]
[1719426813528,27.38,135.97,135.92,7.372]
[1719426813715,27.38,135.98,135.93,7.542]
[1719426813914,27.38,135.98,135.93,27.55]
[1719426814738,15.5492,136.0,135.95,27.38]
[1719426815628,15.5492,136.0,135.93,0.17]
[1719426815943,15.5492,136.0,135.97,7.372]
[1719426816631,15.5492,136.0,135.96,7.372]
[1719426823731,21.3367,136.05,135.99,27.38]
[1719426823933,21.3367,136.05,136.0,27.38]
[1719426824767,21.3367,136.05,136.01,7.372]
[1719426828860,21.3367,136.05,136.01,8.83920785]
[1719426829041,35.05943301,136.07,136.02,27.38]
[1719426829965,35.05943301,136.07,136.03,7.372]
[1719426829966,7.67943301,136.07,136.03,7.372]
[1719426830134,35.05943301,136.07,136.01,27.38]
[1719426830531,27.38,136.06,136.0,27.38]
[1719426830741,27.38,136.06,135.99,0.34]
[1719426831062,27.38,136.05,136.0,7.372]
[1719426831939,27.38,136.06,136.0,34.752]
[1719426832134,7.67943301,136.07,136.01,7.372]
[1719426832334,27.38,136.06,136.01,7.372]
[1719426832549,27.38,136.06,136.02,7.372]
[1719426833140,35.05943301,136.07,136.01,27.38]
[1719426833468,35.05943301,136.07,136.02,7.372]
[1719426833642,35.05943301,136.07,136.03,7.372]
[1719426836363,35.05943301,136.07,136.02,7.372]
[1719426840268,27.38,136.06,135.99,0.17]
[1719426840464,27.38,136.06,136.01,7.372]
[1719426841049,15.5346,136.05,135.95,16.54]
[1719426841263,27.38,136.01,135.93,7.372]
[1719426841472,27.38,136.01,135.95,27.38]
[1719426841791,6.9852,136.04,135.97,27.38]
[1719426841792,27.38,136.02,135.97,27.38]
[1719426843445,27.38,136.03,135.97,27.38]
[1719426845381,27.38,136.02,135.97,27.38]
[1719426851358,7.3519,136.02,135.91,128.07584114]
[1719426851559,7.3519,136.02,135.92,20.34]
[1719426852378,27.38,136.0,135.94,34.752]
[1719426852578,27.38,136.0,135.95,0.34]
[1719426853077,27.38,135.99,135.92,20.0]
[1719426853277,27.38,135.97,135.91,22.0156]
[1719426853478,27.38,135.96,135.91,22.0156]
[1719426853980,27.38,135.96,135.91,49.3956]
[1719426854366,27.38,135.96,135.91,56.7676]
[1719426854682,27.38,135.97,135.91,49.3956]
[1719426854885,27.38,135.97,135.92,0.17]
[1719426855079,27.38,135.97,135.92,0.34]
[1719426857884,27.38,135.97,135.92,27.72]
[1719426858283,22.78981303,136.01,135.93,27.38]
[1719426858585,27.38,135.98,135.93,27.38]
[1719426859983,27.38,135.98,135.92,7.709]
[1719426860191,27.38,135.97,135.92,0.34]
[1719426860378,27.38,135.97,135.92,27.72]
[1719426860564,27.38,135.98,135.92,27.72]
[1719426860761,15.1118,136.01,135.93,27.38]
[1719426861091,27.38,136.0,135.94,27.72]
[1719426861284,27.38,136.0,135.95,7.369]
[1719426861494,27.38,136.0,135.95,7.539]
[1719426861673,27.38,136.0,135.95,0.17]
[1719426862071,7.3518,136.02,135.91,122.0156]
[1719426862072,27.38,135.99,135.93,27.38]
[1719426862275,51.40765133,136.04,135.92,34.919]
[1719426862276,27.38,135.97,135.92,34.919]
[1719426862472,27.38,136.01,135.93,0.17]
[1719426862677,27.38,135.98,135.93,0.17]
[1719426863291,27.38,135.97,135.93,0.17]
[1719426863592,27.38,135.97,135.92,7.539]
[1719426865572,27.38,135.97,135.92,0.17]
[1719426865776,27.38,135.97,135.92,7.709]
[1719426866580,27.38,135.96,135.92,7.709]
[1719426867491,27.38,135.97,135.92,7.709]
[1719426868101,109.52,136.01,135.91,49.3956]
[1719426868102,15.6389,135.99,135.91,15.7116]
[1719426868302,27.38,135.94,135.9,7.369]
[1719426869271,27.38,135.94,135.89,7.369]
[1719426869492,27.38,135.95,135.9,0.17]
[1719426870600,15.6389,135.99,135.91,7.369]
[1719426870776,27.38,135.96,135.91,7.369]
[1719426875198,13.7348,136.0,135.92,1.47128457]
[1719426875387,27.38,135.98,135.92,27.38]
[1719426875582,27.38,135.98,135.93,1.47081108]
[1719426877597,27.38,135.98,135.92,34.749]
[1719426877792,27.38,135.97,135.92,7.369]
[1719426880493,27.38,135.97,135.92,34.749]
[1719426881700,34.7326,136.01,135.92,34.749]
[1719426881886,27.38,135.99,135.93,43.797]
[1719426882082,27.38,135.99,135.95,7.369]
[1719426882502,27.38,136.0,135.94,27.38]
[1719426883408,27.38,136.0,135.95,7.369]
[1719426883581,27.38,135.99,135.95,7.369]
[1719426884291,27.38,136.0,135.95,27.38]
[1719426884610,27.38,136.01,135.96,7.369]
[1719426886908,14.0045,136.03,135.96,7.369]
[1719426887082,27.38,136.01,135.96,7.369]
[1719426890410,15.3316,136.05,135.96,27.38]
[1719426890603,7.3509,136.04,135.97,27.38]
[1719426890910,27.38,136.03,135.97,43.1631]
[1719426891590,27.38,136.03,135.98,7.369]
[1719426892190,15.3316,136.05,135.98,34.749]
[1719426892389,27.38,136.03,135.98,34.749]
[1719426892786,13.83655408,136.06,135.98,34.749]
[1719426892988,27.38,136.03,135.98,34.749]
[1719426893511,7.3502,136.05,135.98,34.749]
[1719426894022,27.38,136.03,135.98,34.749]
[1719426897994,27.38,136.03,135.98,7.369]
[1719426900316,15.01665408,136.06,135.99,0.17]
[1719426900500,27.38,136.05,136.0,27.38]
[1719426900699,27.38,136.05,136.01,7.369]
[1719426901602,27.38,136.05,135.99,27.72]
[1719426901831,27.38,136.05,136.0,7.369]
[1719426902033,7.66685408,136.06,135.97,15.7831]
[1719426902240,27.38,136.02,135.97,15.7831]
[1719426902857,27.38,136.02,135.98,7.369]
[1719426903774,27.38,136.03,135.97,43.5031]
[1719426903941,27.38,136.03,135.98,7.709]
[1719426904950,27.38,136.02,135.98,7.709]
[1719426905945,7.3511,136.04,135.95,33.4442]
[1719426906149,27.38,136.0,135.95,6.0642]
[1719426907060,27.38,136.0,135.96,7.369]
[1719426907262,27.38,136.0,135.95,33.4442]
[1719426908242,27.38,136.01,135.96,7.709]
[1719426908443,27.38,136.01,135.96,27.72]
[1719426909146,27.38,136.02,135.97,7.369]
[1719426909646,27.38,136.01,135.97,7.369]
[1719426909852,27.38,136.02,135.97,7.369]
[1719426911668,27.38,136.01,135.97,7.369]
[1719426911954,27.38,136.01,135.96,7.709]
[1719426913043,7.3513,136.03,135.95,6.0642]
[1719426913243,27.38,135.97,135.93,15.9518]
[1719426913765,27.38,135.98,135.93,23.3208]
[1719426913969,27.38,135.98,135.93,15.9518]
[1719426914754,27.38,135.98,135.94,7.369]
[1719426915662,27.38,135.99,135.93,43.3318]
[1719426915855,27.38,135.99,135.94,7.709]
[1719426919270,31.52389564,136.03,135.94,7.709]
[1719426919569,27.38,136.0,135.95,34.749]
[1719426921965,27.38,136.0,135.95,7.369]
[1719426922465,27.38,135.99,135.95,7.369]
[1719426923771,27.38,135.99,135.94,7.709]
[1719426926068,27.38,135.99,135.94,7.369]
[1719426926370,16.5069,136.03,135.93,15.9518]
[1719426926371,27.38,135.95,135.93,15.9518]
[1719426927566,116.8726,136.01,135.93,15.9518]
[1719426927764,27.38,135.95,135.93,15.9518]
[1719426927960,27.38,135.97,135.93,15.9518]
[1719426928266,23.8582,136.03,135.93,43.3318]
[1719426928473,27.38,135.99,135.94,0.34]
[1719426928968,27.38,135.98,135.94,7.539]
[1719426929171,27.38,135.97,135.93,15.9518]
[1719426929977,27.38,135.97,135.93,23.3208]
[1719426932568,27.38,135.94,135.89,15.3154]
[1719426933071,27.38,135.94,135.89,22.6844]
[1719426934657,7.66383382,135.99,135.89,50.0644]
[1719426934863,7.66383382,135.99,135.94,15.9905]
[1719426935071,27.38,135.99,135.94,15.9905]
[1719426935964,27.38,135.99,135.94,23.3595]
[1719426936589,6.6062,136.03,135.94,50.7395]
[1719426936772,27.38,136.0,135.95,0.34]
[1719426936973,27.38,136.0,135.95,7.709]
[1719426937982,27.38,135.99,135.95,7.709]
[1719426938183,27.38,135.99,135.95,7.369]
[1719426938484,27.38,135.98,135.94,15.9905]
[1719426939088,27.38,135.97,135.93,13.6848]
[1719426939468,27.38,135.96,135.91,15.0187]
[1719426939671,27.38,135.96,135.92,0.17]
[1719426939870,27.38,135.94,135.91,15.0187]
[1719426941168,27.38,135.95,135.91,15.0187]
[1719426943183,27.38,135.96,135.91,22.3877]
[1719426943361,27.38,135.96,135.91,49.7677]
[1719426944081,28.6962,136.03,135.92,27.72]
[1719426944082,7.352,136.02,135.92,27.72]
[1719426944288,27.38,135.98,135.92,27.72]
[1719426946490,27.38,135.97,135.92,0.34]
[1719426949001,27.38,135.96,135.92,0.17]
[1719426949199,27.38,135.97,135.92,0.34]
[1719426949894,27.38,135.96,135.92,0.34]
[1719426950370,27.38,135.96,135.91,49.7677]
[1719426950571,27.38,135.95,135.91,15.0187]
[1719426950792,27.38,135.95,135.91,22.3877]
[1719426953479,7.523,136.0,135.89,6.6497]
[1719426953480,15.7109,135.98,135.89,6.6497]
[1719426953682,27.38,135.94,135.89,6.6497]
[1719426954498,27.38,135.93,135.89,6.6497]
[1719426954676,27.38,135.93,135.9,7.369]
[1719426955178,27.38,135.93,135.89,6.6497]
[1719426955792,27.38,135.91,135.88,15.8354]
[1719426956093,27.38,135.9,135.86,6.4842]
[1719426956397,27.38,135.91,135.86,6.4842]
[1719426956694,27.38,135.91,135.87,7.369]
[1719426957701,27.38,135.91,135.81,100.0]
[1719426957702,22.1465,135.91,135.8,116.1249]
[1719426957997,27.38,135.88,135.82,27.38]
[1719426958707,27.38,135.88,135.82,34.749]
[1719426958911,27.38,135.88,135.87,7.3599]
[1719426960700,27.38,135.88,135.85,7.3607]
[1719426960877,27.38,135.86,135.85,7.3607]
[1719426962010,7.66201986,135.9,135.87,7.3598]
[1719426962205,27.38,135.88,135.87,7.3598]
[1719426962394,27.38,135.88,135.86,7.3604]
[1719426962606,27.38,135.87,135.8,27.38]
[1719426962914,27.38,135.85,135.84,7.3614]
[1719426964108,22.1465,135.91,135.8,28.85244937]
[1719426964408,27.38,135.86,135.85,7.361]
[1719426965794,27.38,135.86,135.79,50.8739]
[1719426965992,27.38,135.85,135.84,7.3612]
[1719426967618,7.359,135.89,135.84,7.3612]
[1719426967915,20.0,135.9,135.79,16.1249]
[1719426968094,22.1465,135.91,135.87,7.3595]
[1719426968301,27.38,135.88,135.87,7.3595]
[1719426969310,27.38,135.88,135.85,7.3608]
[1719426969524,27.38,135.86,135.85,7.3608]
[1719426972119,22.1465,135.91,135.87,7.3596]
[1719426972303,27.38,135.88,135.87,7.3596]
[1719426972503,27.38,135.88,135.86,7.3602]
[1719426972813,27.38,135.87,135.86,7.3602]
[1719426976935,27.38,135.87,135.84,7.3615]
[1719426977233,44.2365,135.91,135.84,7.3615]
[1719426977234,27.38,135.86,135.84,7.3615]
[1719426978824,27.38,135.86,135.85,7.361]
[1719426980232,27.38,135.86,135.81,7.369]
[1719426980431,27.38,135.85,135.84,7.3611]
[1719426980651,27.38,135.85,135.83,7.3619]
[1719426980938,27.38,135.84,135.83,7.3619]
[1719426983338,27.38,135.87,135.84,7.3613]
[1719426983517,27.38,135.85,135.84,7.3613]
[1719426985119,27.38,135.86,135.84,7.3613]
[1719426985817,27.38,135.85,135.84,7.3613]
[1719426987447,27.38,135.85,135.83,7.3619]
[1719426988246,27.38,135.84,135.83,7.3619]
[1719426988947,27.38,135.84,135.79,16.1249]
[1719426989151,27.38,135.84,135.82,7.3625]
[1719426990447,27.38,135.84,135.83,7.3621]
[1719426990634,27.38,135.85,135.84,7.3615]
[1719426991652,27.38,135.85,135.83,7.3619]
[1719426992665,27.38,135.85,135.79,50.8739]
[1719426992866,27.38,135.85,135.8,0.34]
[1719426993235,27.38,135.88,135.86,7.3604]
[1719426994356,27.38,135.88,135.85,7.3608]
[1719426994554,27.38,135.87,135.85,7.3608]
[1719426996359,27.38,135.86,135.85,7.3608]